bitfinex-derivatives/quotes_BTCF0:USTF0_20250101
["timestamp","ask_amount","ask_price","bid_price","bid_amount"]
[1735745995229,0.05316,94239.0,94238.0,0.05316]
[1735745995922,0.15927824,94239.0,94238.0,0.05316]
[1735746050072,0.10611824,94239.0,94238.0,0.05316]
[1735746050464,0.053157,94244.0,94243.0,0.053157]
[1735746051173,0.15927074,94244.0,94243.0,0.053157]
[1735746053076,0.15927074,94244.0,94243.0,0.06387287]
[1735746063080,0.15927074,94244.0,94243.0,0.01071587]
[1735746063281,0.053161,94237.0,94236.0,0.3608]
[1735746063983,0.15926911,94237.0,94236.0,0.01054313]
[1735746064177,0.053164,94231.0,94230.0,0.053164]
[1735746064780,0.15927999,94231.0,94230.0,0.053164]
[1735746065378,0.15927999,94231.0,94230.0,0.054164]
[1735746065580,0.15927999,94231.0,94230.0,0.055164]
[1735746067588,0.15927999,94231.0,94230.0,0.002]
[1735746071688,0.15927999,94231.0,94214.0,0.3608]
[1735746071689,0.053173,94215.0,94214.0,0.3608]
[1735746072392,0.15929575,94215.0,94214.0,0.3608]
[1735746073293,0.15929575,94215.0,94214.0,0.004]
[1735746073684,0.24159575,94215.0,94214.0,0.004]
[1735746073887,0.18842275,94215.0,94214.0,0.003]
[1735746074188,0.24159575,94215.0,94214.0,0.012]
[1735746074693,0.24159575,94215.0,94214.0,0.011]
[1735746074888,0.24159575,94215.0,94214.0,0.006]
[1735746080092,0.15929575,94215.0,94214.0,0.059174]
[1735746082096,0.10612275,94215.0,94214.0,0.059174]
[1735746082496,0.053168,94225.0,94224.0,0.053167]
[1735746083190,0.10614077,94225.0,94216.0,0.3608]
[1735746083595,0.12431021,94230.0,94216.0,0.3608]
[1735746083893,0.12431021,94230.0,94229.0,0.053165]
[1735746084096,0.053165,94230.0,94229.0,0.053165]
[1735746084499,0.1592945,94230.0,94229.0,0.053165]
[1735746085596,0.1061295,94230.0,94216.0,0.37345877]
[1735746085793,0.05317,94222.0,94221.0,0.05317]
[1735746086397,0.15929387,94222.0,94221.0,0.05317]
[1735746088399,0.15929387,94222.0,94221.0,0.05417]
[1735746089698,0.15929387,94222.0,94221.0,0.05517]
[1735746091187,0.15929387,94222.0,94221.0,0.002]
[1735746092201,0.52009387,94222.0,94221.0,0.001]
[1735746092395,0.52009387,94222.0,94221.0,0.002]
[1735746093201,0.53059865,94222.0,94221.0,0.002]
[1735746094201,0.52009387,94222.0,94221.0,0.002]
[1735746095306,0.52009387,94222.0,94221.0,0.05517]
[1735746095494,0.15929387,94222.0,94221.0,0.05517]
[1735746098400,0.15929387,94222.0,94221.0,0.002]
[1735746101206,0.15929387,94222.0,94221.0,0.001]
[1735746102307,0.15929387,94222.0,94220.0,0.05317]
[1735746102308,0.05217,94221.0,94220.0,0.05317]
[1735746103108,0.15830288,94221.0,94220.0,0.05317]
[1735746105713,0.15930288,94221.0,94220.0,0.05317]
[1735746108513,0.15830288,94221.0,94220.0,0.05317]
[1735746108706,0.15930288,94221.0,94220.0,0.05317]
[1735746113119,0.15830288,94221.0,94220.0,0.05317]
[1735746114514,0.00631956,94221.0,94220.0,0.05317]
[1735746114913,0.05948956,94221.0,94220.0,0.05317]
[1735746118318,0.00631956,94221.0,94220.0,0.05317]
[1735746123822,0.00631956,94221.0,94220.0,0.41397]
[1735746124015,0.053162,94234.0,94233.0,0.053161]
[1735746124213,0.053155,94248.0,94233.0,0.3608]
[1735746124423,0.19801835,94238.0,94237.0,0.053161]
[1735746125018,0.30413772,94238.0,94237.0,0.053161]
[1735746126131,0.15927937,94238.0,94237.0,0.053161]
[1735746126323,0.15927937,94238.0,94237.0,0.0639292]
[1735746126525,0.16027937,94238.0,94237.0,0.0639292]
[1735746127229,0.16027937,94238.0,94237.0,0.0117682]
[1735746129137,0.16027937,94238.0,94237.0,0.0649292]
[1735746131830,0.10711937,94238.0,94237.0,0.0649292]
[1735746133024,0.16027937,94238.0,94237.0,0.054161]
[1735746133947,0.16027937,94238.0,94237.0,0.001]
[1735746134239,0.05317,94222.0,94221.0,0.05317]
[1735746134939,0.15930288,94222.0,94221.0,0.05317]
[1735746135536,0.15930288,94222.0,94221.0,0.05417]
[1735746137138,0.15930288,94222.0,94221.0,0.05317]
[1735746137443,0.15930288,94222.0,94221.0,0.05417]
[1735746138034,0.16230288,94222.0,94221.0,0.05317]
[1735746138636,0.16130288,94222.0,94221.0,0.05317]
[1735746139634,0.16030288,94222.0,94221.0,0.05317]
[1735746142841,0.10713288,94222.0,94221.0,0.05317]
[1735746143349,0.10713288,94222.0,94221.0,0.09367]
[1735746144345,0.10613288,94222.0,94221.0,0.09367]
[1735746144849,0.07114521,94231.0,94230.0,0.053165]
[1735746145043,0.10613288,94222.0,94221.0,0.09467]
[1735746145243,0.053164,94231.0,94221.0,0.13797]
[1735746145444,0.053164,94231.0,94230.0,0.053165]
[1735746146149,0.15929182,94231.0,94230.0,0.053165]
[1735746146943,0.16129182,94231.0,94230.0,0.053165]
[1735746151150,0.16129182,94231.0,94230.0,0.06376882]
[1735746157155,0.10812782,94231.0,94230.0,0.06376882]
[1735746158657,0.002,94231.0,94230.0,0.06376882]
[1735746158959,0.001,94231.0,94230.0,0.06376882]
[1735746159260,0.002,94231.0,94230.0,0.06376882]
[1735746159652,0.001,94231.0,94230.0,0.06376882]
[1735746159853,0.002,94231.0,94230.0,0.06376882]
[1735746160959,0.001,94231.0,94230.0,0.06376882]
[1735746161256,0.002,94231.0,94230.0,0.06376882]
[1735746171171,0.053156,94246.0,94245.0,0.053156]
[1735746171966,0.15926186,94246.0,94245.0,0.053156]
[1735746172367,0.16026186,94246.0,94245.0,0.054156]
[1735746173369,0.10710586,94246.0,94245.0,0.054156]
[1735746175064,0.10710586,94246.0,94245.0,0.06498113]
[1735746183976,0.16026186,94246.0,94245.0,0.01182513]
[1735746190476,0.16026186,94246.0,94245.0,0.06498113]
[1735746195779,0.15926186,94246.0,94245.0,0.06398113]
[1735746209975,0.15926186,94246.0,94245.0,0.053156]
[1735746214397,0.3608,94254.0,94245.0,0.053156]
[1735746214398,0.3608,94286.0,94262.0,0.053146]
[1735746214583,0.1132,94299.0,94274.0,0.41394]
[1735746214789,0.04210527,94275.0,94274.0,0.41394]
[1735746214988,0.14818524,94275.0,94274.0,0.41394]
[1735746215293,0.04210527,94275.0,94274.0,0.41394]
[1735746216999,0.04210527,94275.0,94274.0,0.41494]
[1735746217596,0.27114521,94300.0,94299.0,0.053126]
[1735746217789,0.2,94300.0,94299.0,0.053126]
[1735746218189,0.30607322,94300.0,94299.0,0.053126]
[1735746219292,0.30607322,94300.0,94299.0,0.054126]
[1735746219885,0.30607322,94300.0,94299.0,0.055126]
[1735746230901,0.30607322,94300.0,94299.0,0.054126]
[1735746243710,0.2,94300.0,94299.0,0.054126]
[1735746244101,0.2,94300.0,94299.0,0.092026]
[1735746247097,0.2,94300.0,94299.0,0.054126]
[1735746247301,0.3060451,94300.0,94299.0,0.054126]
[1735746252416,0.3591761,94300.0,94299.0,0.054126]
[1735746254230,0.3060451,94300.0,94299.0,0.054126]
[1735746255711,0.2,94300.0,94299.0,0.054126]
[1735746257919,0.3060451,94300.0,94299.0,0.054126]
[1735746259316,0.3591761,94300.0,94299.0,0.053126]
[1735746265922,0.17687167,94300.0,94299.0,0.053126]
[1735746266124,0.12374067,94300.0,94299.0,0.053126]
[1735746269723,0.01769557,94300.0,94299.0,0.053126]
[1735746269917,0.48454067,94300.0,94294.0,0.01066209]
[1735746270120,0.3608,94295.0,94294.0,0.053133]
[1735746270729,0.4668451,94295.0,94294.0,0.053133]
[1735746271625,0.4668451,94295.0,94289.0,0.053137]
[1735746271930,0.053134,94294.0,94290.0,0.053136]
[1735746272233,0.053134,94294.0,94291.0,0.053135]
[1735746272624,0.10605353,94293.0,94291.0,0.053135]
[1735746278028,0.15918853,94293.0,94291.0,0.053135]
[1735746278432,0.053135,94293.0,94291.0,0.053135]
[1735746278729,0.10605353,94292.0,94291.0,0.053135]
[1735746279740,0.01769557,94300.0,94291.0,0.01076307]
[1735746279932,0.07114521,94310.0,94298.0,0.3608]
[1735746280234,0.07114521,94310.0,94308.0,0.053126]
[1735746280441,0.10605409,94309.0,94308.0,0.053126]
[1735746280735,0.053125,94311.0,94308.0,0.053126]
[1735746281130,0.10603498,94310.0,94308.0,0.053126]
[1735746281333,0.053125,94311.0,94308.0,0.053126]
[1735746281528,0.053125,94310.0,94308.0,0.053126]
[1735746281728,0.15915998,94310.0,94308.0,0.053126]
[1735746281930,0.053125,94310.0,94308.0,0.053126]
[1735746282130,0.10603441,94309.0,94308.0,0.053126]
[1735746282729,0.10603441,94309.0,94308.0,0.054126]
[1735746283334,0.15915941,94309.0,94308.0,0.053126]
[1735746283832,0.053125,94309.0,94308.0,0.053126]
[1735746284058,0.15915998,94309.0,94308.0,0.053126]
[1735746285039,0.15915998,94309.0,94308.0,0.0639637]
[1735746286143,0.15915998,94309.0,94308.0,0.0060637]
[1735746286331,0.15915998,94309.0,94298.0,0.3608]
[1735746286635,0.15915998,94309.0,94307.0,0.053126]
[1735746286840,0.15915998,94309.0,94298.0,0.3608]
[1735746286841,0.15915998,94309.0,94308.0,0.053126]
[1735746291044,0.15915998,94309.0,94308.0,0.06374443]
[1735746291240,0.3608,94313.0,94312.0,0.053124]
[1735746291944,0.46683498,94313.0,94312.0,0.053124]
[1735746292742,0.46683498,94313.0,94312.0,0.054124]
[1735746292942,0.51995798,94313.0,94312.0,0.054124]
[1735746296943,0.51995798,94313.0,94312.0,0.001]
[1735746306545,0.51995798,94313.0,94312.0,0.054124]
[1735746307249,0.46683498,94313.0,94312.0,0.054124]
[1735746307757,0.51995798,94313.0,94312.0,0.054124]
[1735746308149,0.51995798,94313.0,94312.0,0.053124]
[1735746308754,0.46683498,94313.0,94312.0,0.053124]
[1735746309055,0.3608,94313.0,94312.0,0.053124]
[1735746312156,0.053119,94321.0,94320.0,0.053119]
[1735746312748,0.15914948,94321.0,94320.0,0.053119]
[1735746314359,0.15914948,94321.0,94320.0,0.054119]
[1735746315958,0.15914948,94321.0,94320.0,0.0647868]
[1735746320760,0.15914948,94321.0,94320.0,0.0116678]
[1735746321264,0.053125,94309.0,94308.0,0.3608]
[1735746321957,0.15914649,94309.0,94308.0,0.3608]
[1735746322362,0.10602149,94309.0,94306.0,0.053127]
[1735746322664,0.053127,94307.0,94306.0,0.053127]
[1735746323764,0.15916422,94307.0,94306.0,0.053127]
[1735746324652,0.16016422,94307.0,94306.0,0.053127]
[1735746330261,0.10703722,94307.0,94306.0,0.053127]
[1735746330460,0.10703722,94307.0,94306.0,0.413927]
[1735746330658,0.001,94307.0,94306.0,0.413927]
[1735746331261,0.05312,94318.0,94315.0,0.053122]
[1735746331456,0.05312,94318.0,94317.0,0.053121]
[1735746331866,0.15915722,94318.0,94317.0,0.053121]
[1735746332261,0.10603722,94318.0,94317.0,0.053121]
[1735746332673,0.053118,94323.0,94321.0,0.053119]
[1735746333170,0.16073362,94322.0,94321.0,0.053119]
[1735746334058,0.16173362,94322.0,94321.0,0.054119]
[1735746336363,0.16073362,94322.0,94321.0,0.053119]
[1735746336567,0.16173362,94322.0,94321.0,0.054119]
[1735746338074,0.16173362,94322.0,94321.0,0.01459082]
[1735746339964,0.16173362,94322.0,94321.0,0.001]
[1735746347582,0.16173362,94322.0,94306.0,0.3608]
[1735746347583,0.053127,94308.0,94307.0,0.053126]
[1735746348078,0.053127,94307.0,94300.0,0.05313]
[1735746348278,0.05313,94301.0,94300.0,0.05313]
[1735746349374,0.15917397,94301.0,94300.0,0.05313]
[1735746349976,0.15917397,94301.0,94300.0,0.05413]
[1735746351281,0.16017397,94301.0,94300.0,0.05413]
[1735746352576,0.16017397,94301.0,94300.0,0.05313]
[1735746352872,0.16117397,94301.0,94300.0,0.05313]
[1735746353281,0.15917397,94301.0,94300.0,0.05313]
[1735746353482,0.16117397,94301.0,94300.0,0.05313]
[1735746353880,0.15917397,94301.0,94300.0,0.05313]
[1735746354085,0.16117397,94301.0,94300.0,0.05313]
[1735746356574,0.10804397,94301.0,94300.0,0.05313]
[1735746356975,0.002,94301.0,94300.0,0.05313]
[1735746357877,0.053119,94321.0,94319.0,0.053119]
[1735746358081,0.053119,94320.0,94319.0,0.053119]
[1735746358890,0.15914105,94320.0,94319.0,0.053119]
[1735746360188,0.15914105,94320.0,94319.0,0.054119]
[1735746369190,0.10602205,94320.0,94319.0,0.414919]
[1735746369582,0.053116,94326.0,94324.0,0.053117]
[1735746370189,0.20602261,94325.0,94324.0,0.053117]
[1735746371002,0.20602261,94325.0,94324.0,0.054117]
[1735746372193,0.20607235,94325.0,94324.0,0.054117]
[1735746385898,0.25918835,94325.0,94324.0,0.054117]
[1735746387199,0.06446071,94325.0,94324.0,0.054117]
[1735746390313,0.06446071,94325.0,94324.0,0.001]
[1735746390515,0.06446071,94325.0,94324.0,0.054117]
[1735746391312,0.01134471,94325.0,94324.0,0.054117]
[1735746392114,0.01034471,94325.0,94324.0,0.054117]
[1735746392307,0.00159075,94339.0,94324.0,0.054117]
[1735746392506,0.00159075,94339.0,94338.0,0.413909]
[1735746394217,0.00159075,94339.0,94338.0,0.4293295]
[1735746395118,0.16070101,94339.0,94338.0,0.4303295]
[1735746395314,0.10759201,94339.0,94338.0,0.0695295]
[1735746395710,0.00159075,94339.0,94338.0,0.0695295]
[1735746399220,0.1,94350.0,94349.0,0.053103]
[1735746399412,0.1,94350.0,94349.0,0.413903]
[1735746399814,0.0323,94371.0,94349.0,0.7216]
[1735746400010,0.4608,94375.0,94365.0,0.3608]
[1735746400415,0.10596587,94374.0,94372.0,0.05309]
[1735746402322,0.10596587,94374.0,94372.0,0.05509]
[1735746402914,0.10596587,94374.0,94372.0,0.07081223]
[1735746403320,0.10596587,94374.0,94372.0,0.06981223]
[1735746404720,0.10596587,94374.0,94372.0,0.06881223]
[1735746405129,0.10596587,94374.0,94373.0,0.3608]
[1735746405425,0.1,94375.0,94373.0,0.3608]
[1735746405426,0.07332204,94375.0,94374.0,0.053089]
[1735746405622,0.04368236,94375.0,94374.0,0.053089]
[1735746406113,0.04368236,94375.0,94374.0,0.084089]
[1735746407318,0.3608,94389.0,94374.0,0.384089]
[1735746407624,0.053074,94401.0,94396.0,0.031816]
[1735746408220,0.46676082,94397.0,94396.0,0.031816]
[1735746408613,0.46676082,94397.0,94387.0,0.10816552]
[1735746409116,0.46676082,94397.0,94396.0,0.001]
[1735746409517,0.46676082,94397.0,94396.0,0.054076]
[1735746409715,0.0325,94409.0,94396.0,0.054076]
[1735746409716,0.0325,94409.0,94399.0,0.053075]
[1735746410622,0.14166,94400.0,94399.0,0.053075]
[1735746411828,0.14166,94400.0,94399.0,0.054075]
[1735746413918,0.60839276,94400.0,94399.0,0.001]
[1735746414429,0.053091,94380.0,94376.0,0.053093]
[1735746414623,0.053091,94380.0,94370.0,0.10816552]
[1735746414624,0.0325,94379.0,94375.0,0.01628387]
[1735746414926,0.053093,94377.0,94375.0,0.01628387]
[1735746415123,0.0323,94376.0,94375.0,0.01628387]
[1735746415623,0.1382597,94376.0,94375.0,0.01628387]
[1735746417626,0.1392597,94376.0,94375.0,0.01628387]
[1735746420425,0.1392597,94376.0,94340.0,0.10816552]
[1735746420633,0.3608,94352.0,94351.0,0.053107]
[1735746421221,0.4667597,94352.0,94340.0,0.01481685]
[1735746421429,0.3608,94344.0,94340.0,0.10816552]
[1735746421624,0.3608,94344.0,94334.0,0.3608]
[1735746421625,0.3608,94344.0,94343.0,0.053112]
[1735746422227,0.0321,94351.0,94349.0,0.053108]
[1735746422429,0.0326,94361.0,94344.0,0.3608]
[1735746422635,0.3608,94373.0,94371.0,0.053096]
[1735746423135,0.10599564,94372.0,94371.0,0.053096]
[1735746423433,0.053092,94378.0,94367.0,1.5]
[1735746423632,0.053092,94378.0,94373.0,0.053095]
[1735746423834,0.10596419,94377.0,94373.0,0.053095]
[1735746424029,0.10596419,94377.0,94374.0,0.3608]
[1735746424237,0.15905719,94377.0,94374.0,0.3608]
[1735746424531,0.053093,94377.0,94374.0,0.3608]
[1735746424737,0.053093,94377.0,94374.0,0.413894]
[1735746425032,0.1059597,94376.0,94374.0,0.413894]
[1735746425339,0.1059597,94376.0,94374.0,0.414894]
[1735746426431,0.1069597,94376.0,94374.0,0.414894]
[1735746427033,0.1069597,94376.0,94374.0,0.413894]
[1735746427235,0.1069597,94376.0,94374.0,0.414894]
[1735746427629,0.001,94376.0,94374.0,0.414894]
[1735746428229,0.0319,94384.0,94374.0,0.3618]
[1735746428631,0.00504066,94383.0,94382.0,0.05309]
[1735746428828,0.3921,94414.0,94398.0,0.05308]
[1735746429035,0.053077,94404.0,94403.0,0.3608]
[1735746429538,0.15903726,94404.0,94403.0,0.3608]
[1735746429739,0.15903726,94404.0,94403.0,0.413878]
[1735746430437,0.15903726,94404.0,94403.0,0.42833104]
[1735746430941,0.15903726,94404.0,94403.0,0.42933104]
[1735746432233,0.10596026,94404.0,94403.0,0.42933104]
[1735746432440,0.3608,94414.0,94412.0,0.053073]
[1735746432944,0.10592827,94413.0,94412.0,0.053073]
[1735746433139,0.05971581,94416.0,94415.0,0.053071]
[1735746434943,0.05971581,94416.0,94415.0,0.054071]
[1735746435341,0.05971581,94416.0,94415.0,0.055071]
[1735746437041,0.05971581,94416.0,94415.0,0.06968718]
[1735746437248,0.04000167,94416.0,94415.0,0.06968718]
[1735746440147,0.0232001,94416.0,94415.0,0.06968718]
[1735746441043,0.03116755,94432.0,94431.0,0.053062]
[1735746441249,0.05306,94435.0,94433.0,0.05306]
[1735746441549,0.053058,94439.0,94436.0,0.053059]
[1735746441949,0.10589686,94438.0,94436.0,0.053059]
[1735746442642,0.10589686,94438.0,94431.0,0.001]
[1735746443043,0.10589686,94438.0,94431.0,0.002]
[1735746443551,0.10589686,94438.0,94437.0,0.053059]
[1735746444750,0.3608,94444.0,94437.0,0.053059]
[1735746444751,0.053047,94458.0,94449.0,0.053052]
[1735746445052,0.05463667,94457.0,94449.0,0.053052]
[1735746445452,0.20589013,94450.0,94449.0,0.053052]
[1735746445758,0.1,94450.0,94449.0,0.053052]
[1735746446342,0.00158867,94457.0,94449.0,0.35299573]
[1735746446542,0.00158867,94457.0,94456.0,0.413848]
[1735746446942,0.053039,94473.0,94456.0,0.3608]
[1735746447147,0.0313,94480.0,94464.0,0.3608]
[1735746447348,0.10587668,94473.0,94472.0,0.053039]
[1735746447549,0.053035,94479.0,94474.0,0.053038]
[1735746447947,0.053036,94478.0,94474.0,0.053038]
[1735746448150,0.20585427,94475.0,94474.0,0.053038]
[1735746448546,0.20585427,94475.0,94464.0,0.3608]
[1735746448748,0.053045,94461.0,94457.0,0.053047]
[1735746448952,0.0322,94460.0,94456.0,0.002]
[1735746449254,0.3608,94457.0,94453.0,0.01815132]
[1735746449453,0.053055,94444.0,94442.0,0.3608]
[1735746449948,0.10586715,94443.0,94442.0,0.3608]
[1735746450351,0.053062,94432.0,94426.0,0.053064]
[1735746450856,0.053064,94428.0,94426.0,0.053064]
[1735746451047,0.053064,94428.0,94426.0,0.07070027]
[1735746451243,0.0307,94431.0,94428.0,0.053063]
[1735746451449,0.083763,94431.0,94428.0,0.053063]
[1735746451655,0.053063,94430.0,94428.0,0.053063]
[1735746451849,0.1589621,94430.0,94428.0,0.053063]
[1735746452456,0.0327,94429.0,94428.0,0.053063]
[1735746452655,0.053066,94425.0,94423.0,0.01776097]
[1735746452855,0.053068,94421.0,94410.0,0.46896552]
[1735746453051,0.053068,94421.0,94418.0,0.053069]
[1735746453361,0.413868,94421.0,94418.0,0.053069]
[1735746453554,0.10589967,94420.0,94410.0,0.4873319]
[1735746453755,0.10589967,94420.0,94419.0,0.053069]
[1735746454859,0.10789967,94420.0,94419.0,0.053069]
[1735746455057,0.16096867,94420.0,94419.0,0.053069]
[1735746455245,0.002,94421.0,94419.0,0.413869]
[1735746455450,0.0307,94431.0,94430.0,0.053063]
[1735746455650,0.0307,94431.0,94430.0,0.413863]
[1735746456160,0.13660976,94431.0,94430.0,0.413863]
[1735746456659,0.14460976,94431.0,94430.0,0.414863]
[1735746457056,0.008,94431.0,94430.0,0.414863]
[1735746457951,0.011,94431.0,94430.0,0.414863]
[1735746458147,0.011,94431.0,94430.0,0.714863]
[1735746458365,0.011,94431.0,94430.0,0.414863]
[1735746458762,0.011,94431.0,94430.0,1.914863]
[1735746459060,0.003,94431.0,94430.0,0.413863]
[1735746459255,0.011,94431.0,94430.0,0.43286117]
[1735746459663,0.008,94431.0,94430.0,0.43286117]
[1735746459853,0.0331,94445.0,94430.0,0.37979817]
[1735746460054,0.084655,94444.0,94440.0,0.053057]
[1735746460254,0.19055298,94444.0,94442.0,0.053056]
[1735746461767,0.19055298,94444.0,94439.0,0.3608]
[1735746461768,0.053056,94443.0,94440.0,0.053057]
[1735746461956,0.053056,94441.0,94440.0,0.053057]
[1735746462354,0.0316,94444.0,94442.0,0.053056]
[1735746462554,0.0356,94444.0,94442.0,0.054056]
[1735746462764,0.0366,94444.0,94442.0,0.054056]
[1735746462965,0.10588677,94443.0,94442.0,0.053056]
[1735746463158,0.10588677,94443.0,94440.0,0.001]
[1735746463368,0.053056,94441.0,94439.0,0.3608]
[1735746463556,0.0329,94442.0,94430.0,0.37879817]
[1735746463958,0.10588565,94441.0,94431.0,0.053062]
[1735746464258,0.05306,94435.0,94431.0,0.053062]
[1735746464459,0.05306,94435.0,94430.0,0.48848369]
[1735746464656,0.05306,94435.0,94430.0,0.48696369]
[1735746464858,0.15895518,94434.0,94433.0,0.053061]
[1735746465258,0.05306,94434.0,94433.0,0.053061]
[1735746465458,0.15895518,94434.0,94433.0,0.053061]
[1735746465969,0.10589518,94434.0,94433.0,0.053061]
[1735746466161,0.11289518,94434.0,94433.0,0.054061]
[1735746466358,0.007,94434.0,94433.0,0.054061]
[1735746466562,0.11289462,94434.0,94433.0,0.054061]
[1735746466959,0.11389462,94434.0,94433.0,0.054061]
[1735746471266,0.52775462,94434.0,94433.0,0.001]
[1735746471465,0.52775462,94434.0,94420.0,0.053068]
[1735746471664,0.053064,94428.0,94423.0,0.053066]
[1735746472264,0.10589462,94427.0,94420.0,0.10816552]
[1735746472471,0.10589462,94427.0,94424.0,0.053066]
[1735746472676,0.10589462,94427.0,94425.0,0.053065]
[1735746473372,0.15995962,94427.0,94425.0,0.053065]
[1735746473760,0.054065,94427.0,94425.0,0.053065]
[1735746473964,0.10590303,94426.0,94425.0,0.053065]
[1735746474570,0.13840303,94426.0,94425.0,0.053065]
[1735746475472,0.13940303,94426.0,94425.0,0.053065]
[1735746476261,0.14340303,94426.0,94425.0,0.053065]
[1735746479067,0.14340303,94426.0,94425.0,0.07567542]
[1735746480071,0.19646803,94426.0,94425.0,0.07567542]
[1735746480663,0.14340303,94426.0,94425.0,0.07567542]
[1735746481771,0.14340303,94426.0,94425.0,0.07567042]
[1735746484567,0.44340303,94426.0,94404.0,0.3608]
[1735746484768,0.3608,94405.0,94393.0,0.36238908]
[1735746484968,0.0327,94404.0,94393.0,0.36238908]
[1735746485170,0.053075,94399.0,94393.0,0.36238908]
[1735746485363,0.10590359,94403.0,94393.0,0.36238908]
[1735746485569,0.053075,94400.0,94393.0,0.36238908]
[1735746485768,0.050075,94400.0,94399.0,0.053075]
[1735746486174,0.001,94405.0,94393.0,0.39394525]
[1735746486378,0.001,94405.0,94404.0,0.413872]
[1735746486683,0.0327,94419.0,94418.0,0.053064]
[1735746487275,0.13863332,94419.0,94418.0,0.053064]
[1735746487773,0.10593332,94419.0,94418.0,0.053064]
[1735746488078,0.3608,94430.0,94418.0,0.053064]
[1735746488385,0.10591144,94429.0,94421.0,0.053063]
[1735746488677,0.413858,94430.0,94420.0,0.3608]
[1735746488872,0.413858,94430.0,94429.0,0.053058]
[1735746489574,0.52076327,94430.0,94429.0,0.053058]
[1735746489772,0.52376327,94430.0,94429.0,0.053058]
[1735746490271,0.52076327,94430.0,94429.0,0.053058]
[1735746490476,0.16696327,94430.0,94429.0,0.054058]
[1735746491068,0.11390527,94430.0,94429.0,0.054058]
[1735746491282,0.053049,94447.0,94444.0,0.05305]
[1735746491978,0.10747136,94445.0,94444.0,0.05305]
[1735746492580,0.11647136,94445.0,94444.0,0.05405]
[1735746493081,0.11347136,94445.0,94444.0,0.05305]
[1735746493280,0.12247136,94445.0,94444.0,0.05405]
[1735746494282,0.12247136,94445.0,94444.0,0.001]
[1735746494683,0.02239271,94449.0,94444.0,0.001]
[1735746494884,0.10788229,94445.0,94444.0,0.001]
[1735746495282,0.002,94445.0,94444.0,0.001]
[1735746495578,0.10788229,94445.0,94444.0,0.001]
[1735746496776,0.10588229,94445.0,94444.0,0.001]
[1735746496996,0.15893629,94445.0,94444.0,0.001]
[1735746497281,0.053054,94445.0,94444.0,0.001]
[1735746497682,0.15893629,94445.0,94444.0,0.001]
[1735746500783,0.15893629,94445.0,94444.0,0.054055]
[1735746500784,0.10588229,94445.0,94444.0,0.054055]
[1735746501179,0.02239271,94449.0,94448.0,0.053052]
[1735746501480,0.07544471,94449.0,94448.0,0.02695436]
[1735746501683,0.181327,94449.0,94448.0,0.02695436]
[1735746502776,0.181327,94449.0,94448.0,0.02795436]
[1735746503781,0.01312812,94449.0,94448.0,0.02795436]
[1735746504389,0.06618012,94449.0,94448.0,0.02795436]
[1735746505985,0.06618012,94449.0,94448.0,0.001]
[1735746506201,0.42698012,94449.0,94448.0,0.001]
[1735746507090,0.06618012,94449.0,94448.0,0.001]
[1735746507483,0.42698012,94449.0,94448.0,0.001]
[1735746507691,0.053056,94442.0,94441.0,0.07523418]
[1735746507895,0.053056,94442.0,94441.0,0.053056]
[1735746508389,0.053056,94442.0,94429.0,0.3608]
[1735746508390,0.05306,94437.0,94436.0,0.053059]
[1735746508993,0.15895126,94437.0,94436.0,0.053059]
[1735746510094,0.15895126,94437.0,94436.0,0.001]
[1735746510799,0.053061,94432.0,94431.0,0.053062]
[1735746511494,0.15895226,94432.0,94431.0,0.053062]
[1735746515197,0.053063,94430.0,94429.0,0.02780858]
[1735746515398,0.10589126,94432.0,94424.0,0.00158854]
[1735746515701,0.053065,94425.0,94424.0,0.00158854]
[1735746515888,0.053071,94416.0,94412.0,0.053072]
[1735746516094,0.053065,94425.0,94412.0,0.053072]
[1735746516398,0.053072,94414.0,94413.0,0.053072]
[1735746516804,0.3608,94430.0,94411.0,0.38947298]
[1735746517004,0.3608,94430.0,94413.0,0.053072]
[1735746517005,0.10591705,94414.0,94413.0,0.053072]
[1735746517197,0.053064,94428.0,94426.0,0.053065]
[1735746517399,0.053064,94428.0,94427.0,0.053064]
[1735746517594,0.053061,94433.0,94432.0,0.05306]
[1735746518206,0.053065,94428.0,94427.0,0.053064]
[1735746518900,0.15896635,94428.0,94427.0,0.053064]
[1735746519804,0.16696635,94428.0,94427.0,0.054064]
[1735746521597,0.16696635,94428.0,94427.0,0.001]
[1735746522306,0.053065,94426.0,94425.0,0.053065]
[1735746522895,0.15896859,94426.0,94425.0,0.053065]
[1735746523500,0.16196859,94426.0,94425.0,0.054065]
[1735746526618,0.10890359,94426.0,94425.0,0.054065]
[1735746526823,0.10890359,94426.0,94425.0,0.085465]
[1735746527025,0.10590359,94426.0,94425.0,0.084465]
[1735746527325,0.003,94426.0,94425.0,0.446265]
[1735746528622,0.053056,94442.0,94425.0,0.445265]
[1735746528821,0.053056,94442.0,94438.0,0.053058]
[1735746529127,0.10590359,94441.0,94438.0,0.053058]
[1735746529327,0.10590359,94441.0,94434.0,0.3608]
[1735746529530,0.053058,94439.0,94437.0,0.053058]
[1735746530023,0.10589013,94438.0,94437.0,0.053058]
[1735746531421,0.10589013,94438.0,94425.0,0.3608]
[1735746531422,0.053059,94437.0,94432.0,0.053061]
[1735746531627,0.053059,94437.0,94434.0,0.05306]
[1735746532027,0.1058935,94436.0,94434.0,0.05306]
[1735746532826,0.1058935,94436.0,94434.0,0.05406]
[1735746533425,0.1088935,94436.0,94434.0,0.05406]
[1735746534323,0.1088935,94436.0,94435.0,0.0639]
[1735746535131,0.1058935,94436.0,94435.0,0.0639]
[1735746535429,0.003,94436.0,94435.0,0.0639]
[1735746535822,0.10889238,94436.0,94435.0,0.0951]
[1735746536024,0.003,94436.0,94435.0,0.0961]
[1735746537234,0.00158879,94455.0,94435.0,0.0961]
[1735746537436,0.00158879,94455.0,94453.0,0.05305]
[1735746537733,0.10589238,94454.0,94453.0,0.05305]
[1735746538733,0.10589238,94454.0,94453.0,0.05405]
[1735746539129,0.10589238,94454.0,94453.0,0.05305]